fUSD/lending_fUSD_20250402
["ID","MTS","AMOUNT","RATE_DAILY","PERIOD"]
[357034824,1743604327688,-500.0,0.00056438,120]
[357034825,1743604327724,-1410.46,0.00056438,120]
[357034826,1743604327759,-500.0,0.00056438,120]
[357034827,1743604327796,-500.0,0.00056438,120]
[357034828,1743604327921,-500.0,0.00056438,120]
[357034829,1743604327959,-500.0,0.00056438,120]
[357034830,1743604327995,-500.0,0.00056438,120]
[357034831,1743604328031,-500.0,0.00056438,120]
[357034832,1743604328068,-502.68,0.00056438,120]
[357034833,1743604328104,-500.0,0.00056438,120]
[357034834,1743604328141,-500.0,0.00056438,120]
[357034835,1743604328179,-517.52585316,0.00056438,120]
[357034836,1743604328216,-500.0,0.00056438,120]
[357034837,1743604328253,-500.0,0.00056438,120]
[357034838,1743604328291,-500.0,0.00056438,120]
[357034839,1743604328328,-500.0,0.00056438,120]
[357034840,1743604328365,-500.0,0.00056438,120]
[357034841,1743604328405,-500.0,0.00056438,120]
[357034842,1743604328443,-500.0,0.00056438,100]
[357034843,1743604328482,-500.0,0.00056438,120]
[357034844,1743604328520,-5246.61,0.00056438,120]
[357034845,1743604328557,-500.0,0.00056438,120]
[357034846,1743604328594,-439.96118892,0.00056438,120]
[357034847,1743604328631,-500.0,0.00056438,120]
[357034848,1743604328668,-500.0,0.00056438,120]
[357034849,1743604328706,-500.0,0.00056438,120]
[357034850,1743604328741,-500.0,0.00056438,30]
[357034851,1743604328777,-500.0,0.00056438,120]
[357034852,1743604328814,-468.27819063,0.00056438,120]
[357034853,1743604328849,-500.0,0.00056438,120]
[357034854,1743604328885,-1181.33,0.00056438,120]
[357034855,1743604328919,-523.13268198,0.00056438,120]
[357034856,1743604328953,-500.0,0.00056438,120]
[357034857,1743604328989,-884.05,0.00056438,120]
[357034858,1743604329024,-500.0,0.00056438,120]
[357034859,1743604329059,-500.0,0.00056438,120]
[357034860,1743604329094,-500.0,0.00056438,120]
[357034861,1743604329128,-2500.0,0.00056438,120]
[357034862,1743604329165,-500.0,0.00056438,120]
[357034863,1743604329204,-500.0,0.00056438,120]
[357034864,1743604329244,-500.0,0.00056438,120]
[357034865,1743604329282,-2000.0,0.000565,120]
[357034866,1743604329320,-302.0,0.00056529,30]
[357034867,1743604329358,-40136.457,0.0005666,35]
[357034868,1743604329396,-500.0,0.00056986,120]
[357034869,1743604329434,-500.0,0.00056986,120]
[357034870,1743604329470,-500.0,0.00056986,120]
[357034871,1743604329506,-500.0,0.00056986,120]
[357034872,1743604329541,-500.0,0.00056986,120]
[357034873,1743604329577,-500.0,0.00056986,120]
[357034874,1743604329613,-500.0,0.00056986,120]
[357034875,1743604329647,-500.0,0.00056986,30]
[357034876,1743604329683,-500.0,0.00056986,120]
[357034877,1743604329717,-500.0,0.00056986,120]
[357034878,1743604329756,-500.0,0.00056986,120]
[357034879,1743604329793,-500.0,0.00056986,120]
[357034880,1743604329833,-500.0,0.00056986,120]
[357034881,1743604329872,-500.0,0.00056986,120]
[357034882,1743604329909,-500.0,0.00056986,120]
[357034883,1743604329947,-500.0,0.00056986,120]
[357034884,1743604329983,-500.0,0.00056986,120]
[357034885,1743604330020,-500.0,0.00056986,120]
[357034886,1743604330058,-526.50830974,0.00056986,120]
[357034887,1743604330095,-507.89030127,0.00056986,120]
[357034888,1743604330131,-500.0,0.00056986,120]
[357034889,1743604330168,-500.0,0.00056986,120]
[357034890,1743604330207,-580.99435642,0.00056986,120]
[357034891,1743604330245,-500.0,0.00056986,120]
[357034892,1743604330284,-500.0,0.00056986,120]
[357034893,1743604330329,-500.0,0.00056986,120]
[357034894,1743604330369,-500.0,0.00056986,120]
[357034895,1743604330530,-547.64359613,0.00056986,120]
[357034896,1743604330571,-500.0,0.00056986,120]
[357034897,1743604330608,-500.0,0.00056986,30]
[357034898,1743604330644,-539.52650684,0.00056986,120]
[357034899,1743604330683,-500.0,0.00056986,120]
[357034900,1743604330719,-210.64,0.00056986,120]
[357034901,1743604330756,-308.38860646,0.00056986,120]
[357034902,1743604330792,-500.0,0.00056986,120]
[357034903,1743604330827,-593.41,0.00056986,120]
[357034904,1743604330863,-500.0,0.00056986,120]
[357034905,1743604330898,-249.15,0.00056986,120]
[357034906,1743604330934,-500.0,0.00056986,120]
[357034907,1743604330970,-500.0,0.00056986,120]
[357034908,1743604331007,-500.0,0.00056986,120]
[357034909,1743604331044,-549.5,0.00056986,120]
[357034910,1743604331079,-500.0,0.00056986,120]
[357034911,1743604331117,-193.08208631,0.00056986,120]
[357034912,1743604331154,-500.0,0.00056986,120]
[357034913,1743604331191,-500.0,0.00056986,120]
[357034914,1743604331228,-500.0,0.00056986,120]
[357034915,1743604331265,-500.0,0.00056986,120]
[357034916,1743604331302,-500.0,0.00056986,120]
[357034917,1743604331338,-506.80088111,0.00056986,120]
[357034918,1743604331377,-500.0,0.00056986,120]
[357034919,1743604331414,-500.0,0.00056986,120]
[357034920,1743604331454,-500.0,0.00056986,120]
[357034921,1743604331489,-500.0,0.00056986,120]
[357034922,1743604331526,-500.0,0.00056986,120]
[357034923,1743604331560,-500.0,0.00056986,120]
[357034924,1743604331595,-500.0,0.00056986,120]
[357034925,1743604331632,-500.0,0.00056986,120]
[357034926,1743604331673,-500.0,0.00056986,120]
[357034927,1743604331711,-500.0,0.00056986,120]
[357034928,1743604331746,-500.0,0.00056986,120]
[357034929,1743604331782,-500.0,0.00056986,120]
[357034930,1743604331818,-500.0,0.00056986,120]
[357034931,1743604331855,-500.0,0.00056986,120]
[357034932,1743604331891,-500.0,0.00056986,120]
[357034933,1743604331926,-500.0,0.00056986,120]
[357034934,1743604331964,-500.0,0.00056986,120]
[357034935,1743604331998,-500.0,0.00056986,120]
[357034936,1743604332033,-500.0,0.00056986,120]
[357034937,1743604332067,-1410.46,0.00056986,120]
[357034938,1743604332104,-500.0,0.00056986,120]
[357034939,1743604332142,-500.0,0.00056986,120]
[357034940,1743604332178,-500.0,0.00056986,120]
[357034941,1743604332214,-500.0,0.00056986,120]
[357034942,1743604332250,-500.0,0.00056986,120]
[357034943,1743604332284,-500.0,0.00056986,120]
[357034944,1743604332319,-502.68,0.00056986,120]
[357034945,1743604332355,-372.12817297,0.00056986,120]
[357034946,1743604332391,-385.08358359,0.00056986,120]
[357034947,1743604332427,-500.0,0.00056986,120]
[357034948,1743604332462,-392.47355584,0.00056986,120]
[357034949,1743604332497,-542.77675462,0.00056986,120]
[357034950,1743604332531,-236.22116598,0.00056986,120]
[357034951,1743604332566,-500.0,0.00056986,120]
[357034952,1743604332601,-500.0,0.00056986,120]
[357034953,1743604332636,-5246.61,0.00056986,120]
[357034954,1743604332671,-500.0,0.00056986,120]
[357034955,1743604332708,-500.0,0.00056986,120]
[357034956,1743604332742,-500.0,0.00056986,120]
[357034957,1743604332776,-500.0,0.00056986,120]
[357034958,1743604332813,-500.0,0.00056986,30]
[357034959,1743604332847,-500.0,0.00056986,120]
[357034960,1743604332972,-1181.33,0.00056986,120]
[357034961,1743604333008,-206.67861287,0.00056986,120]
[357034962,1743604333045,-884.05,0.00056986,120]
[357034963,1743604333085,-500.0,0.00056986,120]
[357034964,1743604333124,-500.0,0.00056986,120]
[357034965,1743604333165,-499.42041965,0.00056986,120]
[357034966,1743604333205,-2500.0,0.00056986,120]
[357034967,1743604333245,-500.0,0.00056986,120]
[357034968,1743604333282,-520.20681258,0.00056986,120]
[357034969,1743604333319,-510.38986879,0.00056986,120]
[357034970,1743604333356,-50000.0,0.00056998,120]
[357034971,1743604333391,-506.03638217,0.00057,120]
[357034972,1743604333432,-364503.68142154,0.00057,120]
[357034973,1743604333470,-227.1344564,0.00057,58]
[357034974,1743604333508,-179.63994,0.00057,120]
[357034975,1743604333544,-190.0196136,0.000571,30]
[357034976,1743604333580,-302.0,0.000571,30]
[357034977,1743604333615,-4783.0099574,0.00057389,30]
[357034978,1743604333652,-278.17649,0.0005751,104]
[357034979,1743604333689,-500.0,0.00057534,120]
[357034980,1743604333722,-500.0,0.00057534,120]
[357034981,1743604333757,-500.0,0.00057534,120]
[357034982,1743604333792,-500.0,0.00057534,120]
[357034983,1743604333828,-500.0,0.00057534,120]
[357034984,1743604333864,-500.0,0.00057534,120]
[357034985,1743604333899,-500.0,0.00057534,120]
[357034986,1743604333938,-500.0,0.00057534,30]
[357034987,1743604333973,-500.0,0.00057534,120]
[357034988,1743604334011,-500.0,0.00057534,120]
[357034989,1743604334046,-500.0,0.00057534,120]
[357034990,1743604334084,-500.0,0.00057534,120]
[357034991,1743604334120,-500.0,0.00057534,120]
[357034992,1743604334157,-500.0,0.00057534,120]
[357034993,1743604334193,-574.82776475,0.00057534,120]
[357034994,1743604334229,-565.16153394,0.00057534,120]
[357034995,1743604334266,-500.0,0.00057534,120]
[357034996,1743604334303,-500.0,0.00057534,120]
[357034997,1743604334343,-500.0,0.00057534,120]
[357034998,1743604334381,-500.0,0.00057534,120]
[357034999,1743604334419,-514.75067879,0.00057534,120]
[357035000,1743604334459,-500.0,0.00057534,120]
[357035001,1743604334498,-500.0,0.00057534,120]
[357035002,1743604334535,-500.0,0.00057534,120]
[357035003,1743604334571,-500.0,0.00057534,30]
[357035004,1743604334607,-500.0,0.00057534,120]
[357035005,1743604334647,-500.0,0.00057534,120]
[357035006,1743604334686,-593.41,0.00057534,120]
[357035007,1743604334723,-500.0,0.00057534,120]
[357035008,1743604334760,-500.0,0.00057534,120]
[357035009,1743604334799,-500.0,0.00057534,120]
[357035010,1743604334841,-549.5,0.00057534,120]
[357035011,1743604334881,-500.0,0.00057534,120]
[357035012,1743604334920,-500.0,0.00057534,120]
[357035013,1743604334960,-500.0,0.00057534,120]
[357035014,1743604334997,-500.0,0.00057534,120]
[357035015,1743604335037,-500.0,0.00057534,120]
[357035016,1743604335076,-500.0,0.00057534,120]
[357035017,1743604335116,-500.0,0.00057534,120]
[357035018,1743604335153,-500.0,0.00057534,120]
[357035019,1743604335191,-500.0,0.00057534,120]
[357035020,1743604335227,-386.45150008,0.00057534,120]
[357035021,1743604335262,-500.0,0.00057534,120]
[357035022,1743604335396,-500.0,0.00057534,120]
[357035023,1743604335439,-500.0,0.00057534,120]
[357035024,1743604335481,-624.15727855,0.00057534,120]
[357035025,1743604335520,-500.0,0.00057534,120]
[357035026,1743604335561,-500.0,0.00057534,120]
[357035027,1743604335600,-500.0,0.00057534,120]
[357035028,1743604335640,-500.0,0.00057534,120]
[357035029,1743604335679,-500.0,0.00057534,120]
[357035030,1743604335720,-448.10513289,0.00057534,120]
[357035031,1743604335757,-500.0,0.00057534,120]
[357035032,1743604335796,-532.95996846,0.00057534,120]
[357035033,1743604335836,-500.0,0.00057534,120]
[357035034,1743604335875,-500.0,0.00057534,120]
[357035035,1743604335912,-500.0,0.00057534,120]
[357035036,1743604335948,-1410.46,0.00057534,120]
[357035037,1743604335986,-500.0,0.00057534,120]
[357035038,1743604336025,-500.0,0.00057534,120]
[357035039,1743604336063,-500.0,0.00057534,120]
[357035040,1743604336102,-500.0,0.00057534,120]
[357035041,1743604336140,-500.0,0.00057534,120]
[357035042,1743604336179,-500.0,0.00057534,120]
[357035043,1743604336220,-502.68,0.00057534,120]
[357035044,1743604336261,-500.0,0.00057534,120]
[357035045,1743604336305,-371.84191698,0.00057534,120]
[357035046,1743604336345,-5246.61,0.00057534,120]
[357035047,1743604336386,-625.00205055,0.00057534,120]
[357035048,1743604336428,-500.0,0.00057534,120]
[357035049,1743604336472,-500.0,0.00057534,120]
[357035050,1743604336512,-284.67342919,0.00057534,120]
[357035051,1743604336552,-500.0,0.00057534,30]
[357035052,1743604336591,-184.29632176,0.00057534,120]
[357035053,1743604336633,-1181.33,0.00057534,120]
[357035054,1743604336673,-884.05,0.00057534,120]
[357035055,1743604336714,-500.0,0.00057534,120]
[357035056,1743604336752,-500.0,0.00057534,120]
[357035057,1743604336790,-2500.0,0.00057534,120]
[357035058,1743604336830,-500.0,0.00057534,120]
[357035059,1743604336870,-302.0,0.00057671,30]
[357035060,1743604336908,-603.58632336,0.00058,60]
[357035061,1743604336946,-500.0,0.00058,59]
[357035062,1743604336983,-499.99999905,0.00058,59]
[357035063,1743604337021,-10000.0,0.00058,120]
[357035064,1743604337058,-500.0,0.00058082,120]
[357035065,1743604337096,-500.0,0.00058082,120]
[357035066,1743604337133,-500.0,0.00058082,120]
[357035067,1743604337171,-500.0,0.00058082,120]
[357035068,1743604337208,-500.0,0.00058082,120]
[357035069,1743604337246,-500.0,0.00058082,120]
[357035070,1743604337281,-500.0,0.00058082,30]
[357035071,1743604337319,-500.0,0.00058082,120]
[357035072,1743604337354,-500.0,0.00058082,120]
[357035073,1743604337392,-500.0,0.00058082,120]
[357035074,1743604337427,-500.0,0.00058082,120]
[357035075,1743604337467,-500.0,0.00058082,120]
[357035076,1743604337503,-189.00418923,0.00058082,120]
[357035077,1743604337540,-407.55489822,0.00058082,120]
[357035078,1743604337577,-500.0,0.00058082,120]
[357035079,1743604337616,-500.0,0.00058082,120]
[357035080,1743604337655,-577.12090032,0.00058082,120]
[357035081,1743604337696,-500.0,0.00058082,120]
[357035082,1743604337828,-500.0,0.00058082,30]
[357035083,1743604337873,-500.0,0.00058082,120]
[357035084,1743604337917,-593.41,0.00058082,120]
[357035085,1743604337961,-291.94980397,0.00058082,120]
[357035086,1743604338000,-500.0,0.00058082,120]
[357035087,1743604338040,-500.0,0.00058082,120]
[357035088,1743604338080,-549.5,0.00058082,120]
[357035089,1743604338120,-394.62398028,0.00058082,120]
[357035090,1743604338159,-150.87986238,0.00058082,120]
[357035091,1743604338200,-451.55130614,0.00058082,120]
[357035092,1743604338240,-500.0,0.00058082,120]
[357035093,1743604338281,-500.0,0.00058082,120]
[357035094,1743604338321,-500.0,0.00058082,120]
[357035095,1743604338360,-500.0,0.00058082,120]
[357035096,1743604338398,-500.0,0.00058082,120]
[357035097,1743604338435,-500.0,0.00058082,120]
[357035098,1743604338472,-500.0,0.00058082,120]
[357035099,1743604338509,-500.0,0.00058082,120]
[357035100,1743604338546,-500.0,0.00058082,120]
[357035101,1743604338582,-500.0,0.00058082,120]
[357035102,1743604338619,-500.0,0.00058082,120]
[357035103,1743604338658,-500.0,0.00058082,120]
[357035104,1743604338693,-500.0,0.00058082,120]
[357035105,1743604338728,-500.0,0.00058082,120]
[357035106,1743604338765,-500.0,0.00058082,120]
[357035107,1743604338801,-1410.46,0.00058082,120]
[357035108,1743604338843,-500.0,0.00058082,120]
[357035109,1743604338884,-500.0,0.00058082,120]
[357035110,1743604338920,-410.55707852,0.00058082,120]
[357035111,1743604338956,-502.68,0.00058082,120]
[357035112,1743604338991,-500.0,0.00058082,120]
[357035113,1743604339026,-5246.61,0.00058082,120]
[357035114,1743604339062,-635.12,0.00058082,120]
[357035115,1743604339100,-500.0,0.00058082,30]
[357035116,1743604339137,-1181.33,0.00058082,120]
[357035117,1743604339173,-884.05,0.00058082,120]
[357035118,1743604339210,-500.0,0.00058082,120]
[357035119,1743604339245,-2500.0,0.00058082,120]
[357035120,1743604339281,-500.0,0.00058082,120]
[357035121,1743604339318,-302.0,0.00058242,30]
[357035122,1743604339354,-160.33,0.00058317,120]
[357035123,1743604339391,-179.63994,0.000585,120]
[357035124,1743604339428,-500.0,0.0005863,120]
[357035125,1743604339466,-498.25146504,0.0005863,120]
[357035126,1743604339505,-367.72740323,0.0005863,120]
[357035127,1743604339539,-500.0,0.0005863,120]
[357035128,1743604339575,-500.0,0.0005863,120]
[357035129,1743604339611,-500.0,0.0005863,120]
[357035130,1743604339646,-500.0,0.0005863,120]
[357035131,1743604339682,-500.0,0.0005863,120]
[357035132,1743604339719,-500.0,0.0005863,120]
[357035133,1743604339755,-500.0,0.0005863,120]
[357035134,1743604339790,-500.0,0.0005863,120]
[357035135,1743604339827,-500.0,0.0005863,120]
[357035136,1743604339863,-307.25708808,0.0005863,120]
[357035137,1743604339899,-305.82,0.0005863,120]
[357035138,1743604339933,-593.41,0.0005863,120]
[357035139,1743604339973,-500.0,0.0005863,120]
[357035140,1743604340013,-500.0,0.0005863,120]
[357035141,1743604340148,-549.5,0.0005863,120]
[357035142,1743604340191,-500.0,0.0005863,120]
[357035143,1743604340230,-500.0,0.0005863,120]
[357035144,1743604340270,-500.0,0.0005863,120]
[357035145,1743604340308,-500.0,0.0005863,120]
[357035146,1743604340346,-500.0,0.0005863,120]
[357035147,1743604340384,-254.79995276,0.0005863,120]
[357035148,1743604340423,-500.0,0.0005863,120]
[357035149,1743604340463,-500.0,0.0005863,120]
[357035150,1743604340501,-500.0,0.0005863,120]
[357035151,1743604340541,-500.0,0.0005863,120]
[357035152,1743604340579,-579.53856345,0.0005863,120]
[357035153,1743604340617,-500.0,0.0005863,120]
[357035154,1743604340654,-622.67,0.0005863,120]
[357035155,1743604340692,-500.0,0.0005863,120]
[357035156,1743604340727,-1410.46,0.0005863,120]
[357035157,1743604340765,-500.0,0.0005863,120]
[357035158,1743604340801,-500.0,0.0005863,120]
[357035159,1743604340846,-502.68,0.0005863,120]
[357035160,1743604340885,-500.0,0.0005863,120]
[357035161,1743604340923,-5246.61,0.0005863,120]
[357035162,1743604340960,-500.0,0.0005863,30]
[357035163,1743604340998,-1181.33,0.0005863,120]
[357035164,1743604341034,-884.05,0.0005863,120]
[357035165,1743604341072,-500.0,0.0005863,120]
[357035166,1743604341109,-2500.0,0.0005863,120]
[357035167,1743604341146,-500.0,0.0005863,120]
[357035168,1743604341186,-152.79,0.000587,60]
[357035169,1743604341222,-302.0,0.00058813,30]
[357035170,1743604341258,-500.0,0.00058904,120]
[357035171,1743604341293,-37318.20351645,0.0005891,30]
[357035172,1743604341329,-500.0,0.0005897,30]
[357035173,1743604341365,-1000.0,0.00058984,120]
[357035174,1743604341404,-500.0,0.00059,60]
[357035175,1743604341441,-310120.94488357,0.00059,120]
[357035179,1743605227169,-310.02,0.00026849,2]
[357035180,1743605227193,-150.0,0.00029534,2]
[357035181,1743605227214,-150.0,0.00029748,2]
[357035182,1743605227235,-310.02,0.00032646,2]
[357035183,1743605227258,-157.280876,0.0003287,2]
[357035184,1743605227279,-157.280876,0.0003364,3]
[357035185,1743605227301,-150.0,0.00036157,2]
[357035186,1743605227322,-310.02,0.00038443,2]
[357035187,1743605227344,-157.280876,0.00042379,3]
[357035188,1743605227365,-310.02,0.00044239,2]
[357035189,1743605227388,-158.69419951,0.000447,15]
[357035190,1743605227411,-182.81636578,0.00044789,120]
[357035191,1743605227433,-188.39409234,0.00044789,120]
[357035192,1743605227455,-6773.23211545,0.0004479,3]
[357035193,1743605253158,-217.43029899,0.0004479,3]
[357035194,1743605347138,-3518.50056375,0.00034,30]
[357035195,1743605347159,-150.0,0.00044795,2]
[357035196,1743605347180,-9175.13763989,0.000448,30]
[357035197,1743605348151,-660.56726083,0.000448,30]
[357035199,1743605359112,-842.72216668,0.000448,30]
[357035200,1743605360101,-65.02633554,0.000448,30]
[357035201,1743605360123,-151.0,0.00045,120]
[357035202,1743605360146,-8052.9098644,0.00045836,2]
[357035203,1743605367140,-319.57260838,0.00045836,2]
[357035204,1743605368121,-8276.41878371,0.00045836,2]
[357035206,1743605432058,-7251.09874351,0.00045836,2]
[357035207,1743605432068,-296.66070683,0.00045875,15]
[357035208,1743605432078,-158.69419946,0.00045975,15]
[357035209,1743605432088,-492.17,0.00046439,2]
[357035210,1743605432098,-60.23441894,0.00046578,120]
[357035211,1743605432109,-1939.76558106,0.00046578,120]
[357035212,1743605432119,-1000.0,0.00046578,2]
[357035213,1743605432128,-627.37,0.00046775,2]
[357035214,1743605432139,-296.66070677,0.00046878,15]
[357035215,1743605432149,-238.24,0.00047166,2]
[357035216,1743605432159,-150.0,0.0004718,7]
[357035217,1743605432172,-132.5361551,0.00047187,120]
[357035218,1743605432188,-117.4638449,0.00047187,120]
[357035219,1743605432197,-158.69419946,0.0004725,15]
[357035220,1743605432207,-200.0,0.00047391,2]
[357035221,1743605432216,-73.03802538,0.00047566,120]
[357035222,1743605432228,-593.47197462,0.00047566,120]
[357035223,1743605432237,-405.324,0.0004779,81]
[357035224,1743605432248,-296.66070677,0.00047881,15]
[357035225,1743605432258,-42.88505937,0.0004789,2]
[357035226,1743605432270,-413.42566623,0.0004789,2]
[357035227,1743605432301,-16910.6332744,0.0004789,2]
[357035228,1743605432311,-659.40496228,0.000479,20]
[357035229,1743605432320,-151.0,0.00047971,2]
[357035230,1743605432330,-644.79446246,0.00047971,2]
[357035231,1743605432340,-151.0,0.00047971,2]
[357035232,1743605432349,-439.26505158,0.0004799,4]
[357035233,1743605432359,-500.0,0.00047999,120]
[357035234,1743605432369,-216907.3484546,0.00048,2]
[357035235,1743605432379,-2334.11331683,0.00048,5]
[357035236,1743605432392,-156.1,0.00048218,2]
[357035237,1743605432401,-156.587,0.00048519,2]
[357035238,1743605432410,-158.69419946,0.00048525,15]
[357035239,1743605432420,-293.28,0.00048557,2]
[357035241,1743605432430,-584.0,0.00048562,7]
[357035242,1743605432439,-162.95,0.00048612,120]
[357035244,1743605432449,-492.17,0.00048703,2]
[357035246,1743605432458,-500.0,0.00048767,120]
[357035248,1743605432468,-462.11552149,0.00048767,120]
[357035249,1743605432477,-500.0,0.00048773,10]
[357035251,1743605432487,-4392.6505158,0.0004879,4]
[357035253,1743605432495,-151.41,0.0004879,2]
[357035255,1743605432504,-171.97,0.000488,2]
[357035257,1743605432514,-661964.81935567,0.000488,120]
[357035259,1743605432524,-200.0,0.000488,17]
[357035260,1743605432534,-231.14638314,0.000488,30]
[357035261,1743605432543,-296.66070677,0.00048883,15]
[357035262,1743605432553,-500.0,0.000489,17]
[357035263,1743605432563,-41914.50838729,0.00049,2]
[357035264,1743605432573,-10188.6822937,0.00049,2]
[357035265,1743605432583,-162.380719,0.00049067,2]
[357035266,1743605432593,-150.0,0.00049269,2]
[357035267,1743605432603,-500.0,0.00049315,120]
[357035268,1743605432612,-500.0,0.00049315,120]
[357035269,1743605432622,-500.0,0.00049315,120]
[357035270,1743605432631,-500.0,0.00049315,120]
[357035271,1743605432642,-500.0,0.00049315,120]
[357035272,1743605432653,-500.0,0.00049315,120]
[357035273,1743605432663,-358.50373841,0.00049315,120]
[357035274,1743605432673,-373.16708204,0.00049315,120]
[357035275,1743605432683,-3761.743128,0.0004933,2]
[357035276,1743605432693,-156.587,0.0004934,2]
[357035277,1743605432702,-163.12951868,0.00049354,35]
[357035278,1743605432712,-500.0,0.00049369,120]
[357035279,1743605432721,-13212.1356,0.0004939,2]
[357035280,1743605432730,-1090.7789574,0.00049443,4]
[357035281,1743605432740,-62038.57174751,0.000495,5]
[357035282,1743605432749,-271.0699584,0.00049615,2]
[357035283,1743605432758,-153.17,0.000497,48]
[357035284,1743605432767,-153.17,0.000497,48]
[357035285,1743605432776,-158.69419946,0.000498,15]
[357035286,1743605432785,-296.66070677,0.00049886,15]
[357035287,1743605432794,-283.97562398,0.000499,120]
[357035288,1743605432803,-539.0,0.00049994,30]
[357035289,1743605432813,-150.0,0.0005,2]
[357035290,1743605432823,-185.0,0.0005,120]
[357035291,1743605432832,-1921.0,0.0005,7]
[357035292,1743605432841,-310.02,0.00050036,2]
[357035293,1743605432850,-1646.0,0.000501,7]
[357035294,1743605432859,-1000.0,0.000501,7]
[357035295,1743605432868,-1866.0,0.000501,7]
[357035296,1743605432878,-219.10729899,0.00050709,2]
[357035297,1743605432887,-157.280876,0.0005074,2]
[357035298,1743605432896,-296.66070677,0.00050889,15]
[357035299,1743605432906,-492.17,0.00050967,2]
[357035300,1743605432915,-151.41,0.0005099,120]
[357035301,1743605432925,-66710.999999,0.00051,15]
[357035302,1743605432933,-158.69419946,0.00051075,15]
[357035303,1743605432943,-151.334503,0.00051119,3]
[357035304,1743605432952,-157.280876,0.00051119,3]
[357035305,1743605432962,-647.0,0.00051465,120]
[357035306,1743605432972,-717.221,0.00051465,120]
[357035307,1743605432982,-894.161,0.00051465,120]
[357035308,1743605432992,-498.411,0.00051465,120]
[357035309,1743605433001,-296.66070677,0.00051892,15]
[357035310,1743605433012,-985.0,0.00051964,120]
[357035311,1743605433022,-884.0,0.00051964,120]
[357035312,1743605433032,-500.0,0.00051964,120]
[357035313,1743605433042,-500.0,0.00051964,120]
[357035314,1743605433052,-500.0,0.00051964,120]
[357035315,1743605433061,-500.0,0.00051964,120]
[357035316,1743605433071,-500.0,0.00051964,120]
[357035317,1743605433081,-500.0,0.00051964,120]
[357035318,1743605433090,-500.0,0.00051964,120]
[357035319,1743605433100,-500.0,0.00051964,120]
[357035320,1743605433109,-500.0,0.00051964,120]
[357035321,1743605433118,-500.0,0.00051964,120]
[357035322,1743605433128,-500.0,0.00051964,120]
[357035323,1743605433138,-500.0,0.00051964,120]
[357035324,1743605433147,-500.0,0.00051964,120]
[357035325,1743605433157,-500.0,0.00051964,120]
[357035326,1743605433171,-500.0,0.00051964,120]
[357035327,1743605433181,-500.0,0.00051964,120]
[357035328,1743605433189,-500.0,0.00051964,120]
[357035329,1743605433199,-500.0,0.00051964,120]
[357035330,1743605433210,-500.0,0.00051964,120]
[357035331,1743605433220,-500.0,0.00051964,120]
[357035332,1743605433229,-500.0,0.00051964,120]
[357035333,1743605433238,-500.0,0.00051964,120]
[357035334,1743605433250,-500.0,0.00051964,120]
[357035335,1743605433261,-712.0,0.00051964,120]
[357035336,1743605433270,-500.0,0.00052,120]
[357035337,1743605433279,-153.17,0.00052,51]